bitfinex-derivatives/quotes_SOLF0:USTF0_20250130
["timestamp","ask_amount","ask_price","bid_price","bid_amount"]
[1738218834290,11.41410404,239.49,239.44,7.23840404]
[1738218834291,4.1759,239.48,239.44,7.23840404]
[1738218834487,7.23840404,239.49,239.42,7.23840404]
[1738218834894,4.1762,239.46,239.42,11.41520404]
[1738218835492,4.1764,239.45,239.42,7.26493496]
[1738218835693,0.02680087,239.46,239.42,7.26493496]
[1738218835894,0.02680087,239.46,239.42,0.02653092]
[1738218836501,4.1767,239.43,239.42,0.02653092]
[1738218838704,4.1772,239.41,239.36,11.41620404]
[1738218839802,4.20381879,239.41,239.36,11.44287124]
[1738218841101,0.02661879,239.41,239.36,7.26507124]
[1738218841304,7.26502283,239.41,239.36,0.0266672]
[1738218842009,0.02661879,239.41,239.38,7.23840404]
[1738218842906,0.02661879,239.41,239.38,11.41580404]
[1738218843206,0.02661879,239.41,239.4,7.23840404]
[1738218845307,0.02661879,239.41,239.4,11.41560404]
[1738218845709,1.3993,239.51,239.44,4.1764]
[1738218845904,1.3993,239.51,239.46,7.23840404]
[1738218846312,1.3993,239.51,239.46,11.41460404]
[1738218847012,1.42905286,239.51,239.46,11.44368702]
[1738218847508,0.02975286,239.51,239.48,7.23840404]
[1738218847709,0.02975286,239.51,239.5,7.23840404]
[1738218848413,0.02975286,239.51,239.5,11.41390404]
[1738218849509,7.23840404,239.62,239.53,4.1748]
[1738218849712,7.23840404,239.62,239.55,7.23840404]
[1738218850113,4.1741,239.58,239.55,7.23840404]
[1738218850513,4.1739,239.59,239.55,7.23840404]
[1738218850707,4.20259928,239.59,239.55,7.23840404]
[1738218850915,0.02869928,239.59,239.55,7.23840404]
[1738218851206,4.1741,239.58,239.55,7.23840404]
[1738218851606,0.02869928,239.59,239.55,7.23840404]
[1738218852407,4.1742,239.58,239.55,7.23840404]
[1738218852607,0.02869928,239.59,239.54,0.03001269]
[1738218852808,4.1746,239.55,239.54,0.03001269]
[1738218860215,4.1746,239.55,239.54,1.269e-05]
[1738218860420,7.23840404,239.56,239.44,7.23840404]
[1738218860718,1.44219928,239.59,239.4,1.3823]
[1738218860719,7.23840404,239.48,239.4,7.23840404]
[1738218860915,4.1772,239.41,239.38,7.23840404]
[1738218861416,7.23840404,239.44,239.38,7.23840404]
[1738218861620,7.23840404,239.44,239.36,7.23840404]
[1738218861816,7.23840404,239.44,239.32,1.3549]
[1738218861817,7.23840404,239.42,239.39,0.02689413]
[1738218862019,7.23840404,239.42,239.34,7.23840404]
[1738218862020,4.1781,239.35,239.34,7.23840404]
[1738218862519,7.23840404,239.42,239.34,7.23840404]
[1738218862722,4.20724013,239.37,239.36,7.23840404]
[1738218863022,0.03167623,239.39,239.36,7.23840404]
[1738218863224,4.1776,239.38,239.36,7.23840404]
[1738218866924,0.03167623,239.39,239.34,0.02825789]
[1738218867121,7.23840404,239.35,239.34,0.02825789]
[1738218867824,4.1781,239.35,239.34,0.02825789]
[1738218869125,0.03167623,239.39,239.34,0.02825789]
[1738218870329,4.1778,239.37,239.34,0.02825789]
[1738218870626,0.03167623,239.39,239.34,0.02825789]
[1738218870831,4.1779,239.36,239.34,0.02825789]
[1738218871530,0.03167623,239.39,239.34,0.02825789]
[1738218871832,4.1781,239.35,239.34,0.02825789]
[1738218873128,4.1785,239.33,239.27,4.1795]
[1738218873329,4.1785,239.33,239.26,11.30824783]
[1738218873630,4.1786,239.32,239.28,4.1793]
[1738218874127,4.1786,239.32,239.28,4.20928119]
[1738218874427,4.20629243,239.32,239.28,4.20928119]
[1738218882236,4.1791,239.29,239.28,0.02998119]
[1738218883138,0.02769243,239.32,239.28,0.02998119]
[1738218883337,4.179,239.3,239.28,0.02998119]
[1738218887244,0.02769243,239.32,239.28,0.02998119]
[1738218887450,4.1788,239.31,239.28,0.02998119]
[1738218888046,0.02769243,239.32,239.28,0.02998119]
[1738218888342,4.179,239.3,239.28,0.02998119]
[1738218890553,4.179,239.3,239.29,7.24030082]
[1738218902260,4.1791,239.29,239.28,0.02998119]
[1738218902665,0.02769243,239.32,239.28,0.02998119]
[1738218902856,4.1789,239.31,239.3,7.24030082]
[1738218903560,2.7582,239.42,239.3,7.24030082]
[1738218903760,2.7582,239.42,239.36,7.24030082]
[1738218904366,4.1777,239.37,239.36,7.24030082]
[1738218905156,4.1781,239.35,239.34,7.27226992]
[1738218908167,4.1778,239.37,239.34,7.27226992]
[1738218908469,0.02764051,239.41,239.36,7.24030082]
[1738218908659,0.02764051,239.41,239.4,7.24030082]
[1738218910363,1.406,239.49,239.4,7.24030082]
[1738218910568,25.69245454,239.54,239.48,7.24030082]
[1738218911572,0.03097145,239.53,239.49,0.02979771]
[1738218913170,4.1755,239.5,239.49,0.02979771]
[1738218916869,4.1757,239.49,239.44,7.24030082]
[1738218917076,7.24030082,239.49,239.42,7.24030082]
[1738218917274,7.24030082,239.47,239.4,7.24030082]
[1738218917474,7.24030082,239.45,239.38,7.24030082]
[1738218917773,4.1774,239.39,239.38,7.24030082]
[1738218921982,4.1777,239.37,239.36,0.02828702]
[1738218929183,4.1777,239.37,239.34,7.24030082]
[1738218929184,4.1784,239.33,239.32,7.24030082]
[1738218929984,1.366,239.42,239.2,196.0839]
[1738218929985,4.1784,239.34,239.29,7.24030082]
[1738218930184,4.1784,239.34,239.2,192.0]
[1738218930185,7.24030082,239.32,239.3,0.02902877]
[1738218930488,7.24030082,239.32,239.27,7.24030082]
[1738218930686,0.03000049,239.33,239.29,7.26959088]
[1738218930878,2.7494,239.36,239.31,7.24030082]
[1738218931082,4.1781,239.35,239.34,7.24030082]
[1738218937989,4.1785,239.33,239.32,7.26931772]
[1738218938185,4.1785,239.33,239.32,0.0290169]
[1738218938990,4.1795,239.27,239.26,7.24030082]
[1738218939886,7.24030082,239.32,239.24,7.24030082]
[1738218940087,4.1799,239.25,239.24,7.24030082]
[1738218940290,4.1799,239.25,239.24,7.26927768]
[1738218940592,0.02769783,239.29,239.24,7.26927768]
[1738218940792,4.1797,239.26,239.24,7.26927768]
[1738218941493,4.1798,239.25,239.24,7.26927768]
[1738218945194,4.1798,239.25,239.13,2.68]
[1738218945195,4.1805,239.21,239.18,7.24030082]
[1738218945494,11.0365,239.35,239.14,62.03552486]
[1738218945495,7.24030082,239.24,239.16,7.24030082]
[1738218946392,0.02652827,239.22,239.21,7.24030082]
[1738218946590,9.99950082,239.28,239.21,7.24030082]
[1738218946792,0.0285922,239.24,239.21,7.24030082]
[1738218946992,0.0285922,239.24,239.19,7.24030082]
[1738218947192,7.24030082,239.26,239.19,7.24030082]
[1738218947490,4.1807,239.2,239.19,7.24030082]
[1738218947993,0.02973392,239.24,239.19,7.24030082]
[1738218948187,0.02973392,239.24,239.22,7.24030082]
[1738218948491,10.08660082,239.34,239.22,7.24030082]
[1738218948694,10.08660082,239.34,239.08,59.14678354]
[1738218948895,0.03185484,239.3,239.09,0.76233519]
[1738218949090,4.1793,239.28,239.09,192.76233519]
[1738218949295,4.1793,239.28,239.27,7.24030082]
[1738218949999,4.1795,239.27,239.25,7.24030082]
[1738218950496,0.0303256,239.28,239.25,7.24030082]
[1738218950694,4.2096256,239.28,239.25,7.24030082]
[1738218951597,7.24030082,239.4,239.27,7.24030082]
[1738218951794,7.24030082,239.4,239.33,7.24030082]
[1738218952194,4.1781,239.36,239.33,7.24030082]
[1738218954096,0.02875432,239.37,239.33,7.24030082]
[1738218954302,0.02875432,239.37,239.35,7.24030082]
[1738218957301,0.02875432,239.37,239.32,0.02656848]
[1738218958104,4.1782,239.35,239.32,0.02656848]
[1738218960611,4.20655432,239.37,239.32,4.20516848]
[1738218960804,4.20655432,239.37,239.32,15.51623815]
[1738218961306,4.1782,239.35,239.32,11.33763815]
[1738218961505,4.1782,239.35,239.32,0.02656848]
[1738218965209,4.1785,239.33,239.32,0.02656848]
[1738218965511,11.33982399,239.37,239.23,11.31106967]
[1738218965705,4.1796,239.27,239.23,15.49116967]
[1738218966111,11.31106967,239.37,239.23,15.49116967]
[1738218966311,4.0684,239.43,239.27,4.1794]
[1738218966312,4.1788,239.32,239.27,4.1794]
[1738218966507,15.37946967,239.43,239.26,11.31106967]
[1738218966710,0.03117157,239.32,239.29,11.31106967]
[1738218966910,15.37946967,239.43,239.29,11.31106967]
[1738218967111,0.02777595,239.33,239.29,11.31106967]
[1738218967312,15.37946967,239.43,239.29,11.31106967]
[1738218967611,15.37946967,239.43,239.3,4.179]
[1738218967612,0.03143219,239.33,239.3,4.179]
[1738218967913,0.0289308,239.34,239.29,11.31106967]
[1738218968713,0.0289308,239.34,239.29,15.49006967]
[1738218969212,0.0289308,239.34,239.29,11.31106967]
[1738218970010,0.0289308,239.34,239.32,11.31106967]
[1738218970206,4.1779,239.37,239.32,11.31106967]
[1738218970407,0.0289813,239.35,239.32,11.31106967]
[1738218971113,0.0289813,239.35,239.32,15.48966967]
[1738218973814,4.1784,239.34,239.32,11.31106967]
[1738218974012,4.1784,239.34,239.29,11.31106967]
[1738218974208,15.37946967,239.43,239.29,11.31106967]
[1738218974513,4.1786,239.33,239.29,11.31106967]
[1738218978417,4.1787,239.32,239.29,11.31106967]
[1738218978717,7.26794256,239.34,239.27,7.23998141]
[1738218978915,7.23998141,239.34,239.27,7.23998141]
[1738218979109,0.03017794,239.33,239.27,7.23998141]
[1738218980020,4.1793,239.29,239.27,7.23998141]
[1738218980212,0.03017794,239.33,239.27,7.23998141]
[1738218980517,0.03017794,239.33,239.23,4.1802]
[1738218980718,11.31681563,239.37,239.23,4.1802]
[1738218980916,0.02765872,239.3,239.23,4.1802]
[1738218981520,4.1796,239.27,239.22,15.49721563]
[1738218981813,0.02765872,239.3,239.22,15.49721563]
[1738218982019,4.1797,239.26,239.22,11.31681563]
[1738218982919,4.1797,239.26,239.2,4.1806]
[1738218983122,4.1799,239.25,239.2,4.1806]
[1738218983521,4.21094104,239.25,239.2,4.1806]
[1738218984322,4.21094104,239.25,239.21,4.1805]
[1738218984522,4.21094104,239.25,239.19,11.31681563]
[1738218986024,4.21094104,239.25,239.19,15.49751563]
[1738218986224,4.1801,239.24,239.19,15.49751563]
[1738218988528,0.03104104,239.25,239.19,11.31681563]
[1738218988731,4.21094104,239.25,239.2,4.1807]
[1738218989327,0.03104104,239.25,239.24,4.18]
[1738218989528,4.179,239.3,239.22,11.31681563]
[1738218989732,0.03182908,239.27,239.25,11.31681563]
[1738218990031,0.03182908,239.27,239.26,4.1795]
[1738218992028,0.03182908,239.27,239.25,11.31681563]
[1738218992231,0.03182908,239.27,239.22,11.31681563]
[1738218992732,4.1797,239.26,239.22,11.31681563]
[1738218993735,0.03182908,239.27,239.22,15.49721563]
[1738218995129,0.03182908,239.27,239.22,11.31681563]
[1738218995736,4.1797,239.26,239.22,11.31681563]
[1738218995937,0.03182908,239.27,239.19,11.31681563]
[1738218997238,4.1802,239.24,239.19,11.31681563]
[1738218997426,0.03182908,239.27,239.19,11.31681563]
[1738218997632,0.03182908,239.27,239.16,15.49811563]
[1738218997937,4.1805,239.21,239.16,11.31681563]
[1738218999139,4.1805,239.21,239.16,15.49821563]
[1738219000736,4.21200858,239.24,239.2,4.1807]
[1738219001137,4.21170755,239.24,239.2,4.1807]
[1738219001338,4.21170755,239.24,239.19,11.31681563]
[1738219002936,4.1803,239.23,239.19,11.31681563]
[1738219003430,0.03170755,239.24,239.16,11.31681563]
[1738219003835,11.31681563,239.28,239.16,11.31681563]
[1738219004136,0.02674814,239.22,239.16,11.31681563]
[1738219004338,0.02674814,239.22,239.09,192.0]
[1738219004339,0.02674814,239.22,239.13,11.31681563]
[1738219004641,0.02674814,239.22,239.15,7.24899263]
[1738219005433,4.1807,239.2,239.15,7.24899263]
[1738219005737,0.02674814,239.22,239.15,7.24899263]
[1738219006036,4.20724814,239.22,239.19,7.24899263]
[1738219006639,4.20724814,239.22,239.15,11.32320434]
[1738219007240,4.1806,239.21,239.17,4.1812]
[1738219007940,0.02674814,239.22,239.18,4.181]
[1738219009140,4.20714814,239.22,239.17,4.1812]
[1738219009544,4.1806,239.21,239.15,11.32320434]
[1738219010140,4.181,239.19,239.14,4.1816]
[1738219010538,4.20883082,239.19,239.14,4.1816]
[1738219011238,4.20883082,239.19,239.12,11.32320434]
[1738219011239,0.02783082,239.19,239.12,15.50520434]
[1738219011441,0.02783082,239.19,239.12,11.32320434]
[1738219012640,0.02783082,239.19,239.08,59.98332361]
[1738219012844,0.02783082,239.19,239.08,59.14678354]
[1738219014144,0.02783082,239.19,239.09,4.1826]
[1738219014642,4.1814,239.16,239.09,4.1826]
[1738219015245,4.1814,239.16,239.1,4.1824]
[1738219015542,4.1812,239.18,239.09,11.32320434]
[1738219016843,4.1812,239.17,239.12,4.1821]
[1738219017049,0.02783082,239.19,239.09,11.32320434]
[1738219018149,0.02783082,239.19,239.1,4.1824]
[1738219018650,0.02783082,239.19,239.09,15.50580434]
[1738219019145,4.1817,239.15,239.09,15.50580434]
[1738219019851,4.1818,239.14,239.09,15.50580434]
[1738219020248,4.20885091,239.14,239.09,15.50580434]
[1738219020651,0.02705091,239.14,239.1,4.1823]
[1738219024454,0.02705091,239.14,239.1,4.1824]
[1738219024650,0.02705091,239.14,239.09,11.32320434]
[1738219026554,0.02705091,239.14,239.1,4.1824]
[1738219028555,0.02705091,239.14,239.12,7.25097052]
[1738219029859,4.20885091,239.14,239.12,7.25097052]
[1738219030557,0.02705091,239.14,239.08,66.39775406]
[1738219030758,7.25097052,239.12,239.04,13.14219527]
[1738219031055,7.25097052,239.1,239.04,7.25097052]
[1738219031253,7.25097052,239.08,239.02,7.25097052]
[1738219031456,7.25097052,239.12,239.05,7.25097052]
[1738219031759,1.3606,239.19,239.09,7.25097052]
[1738219031760,4.1819,239.14,239.09,7.25097052]
[1738219031962,0.02876667,239.11,239.09,7.25097052]
[1738219035365,7.25097052,239.24,239.09,7.25097052]
[1738219035571,4.1809,239.2,239.17,7.25097052]
[1738219036371,4.1809,239.19,239.17,7.25097052]
[1738219036571,4.1809,239.19,239.16,0.02958671]
[1738219037070,10.22934812,239.18,239.16,0.02958671]
[1738219037263,14.41044812,239.18,239.16,0.02958671]
[1738219037771,10.22934812,239.17,239.16,0.02958671]
[1738219038572,4.1811,239.18,239.16,0.02958671]
[1738219040769,4.1812,239.17,239.16,0.02958671]
[1738219054390,4.1808,239.2,239.16,0.02958671]
[1738219054685,0.02775619,239.21,239.16,0.02958671]
[1738219056585,4.1812,239.17,239.16,0.02958671]
[1738219058681,4.1812,239.17,239.16,7.27839644]
[1738219064390,0.02775619,239.21,239.16,7.27839644]
[1738219064391,0.02775619,239.21,239.17,4.1811]
[1738219064691,0.02775619,239.21,239.2,7.24880973]
[1738219066091,4.20825619,239.21,239.2,7.24880973]
[1738219071096,0.02775619,239.21,239.2,7.24880973]
[1738219071794,0.02775619,239.21,239.2,11.42950973]
[1738219073494,0.02775619,239.21,239.2,7.24880973]
[1738219073797,0.02775619,239.21,239.16,0.02958671]
[1738219073798,7.27656592,239.21,239.16,0.02958671]
[1738219074194,7.24880973,239.19,239.16,0.02958671]
[1738219075090,4.1812,239.17,239.16,0.02958671]
[1738219077997,11.43000973,239.17,239.16,0.02958671]
[1738219081805,4.1824,239.11,239.09,7.24880973]
[1738219082706,7.24880973,239.15,239.07,7.24880973]
[1738219082907,4.1825,239.1,239.07,7.24880973]
[1738219083099,0.0303871,239.12,239.07,7.24880973]
[1738219083600,4.1824,239.11,239.07,7.24880973]
[1738219083797,0.0303871,239.12,239.07,7.24880973]
[1738219084606,0.0303871,239.12,239.05,7.24880973]
[1738219085304,4.1825,239.1,239.05,7.24880973]
[1738219085503,0.0303871,239.12,239.05,7.24880973]
[1738219086208,4.183,239.08,239.05,7.24880973]
[1738219088809,0.0303871,239.12,239.05,7.24880973]
[1738219089010,4.183,239.07,239.05,7.24880973]
[1738219093208,7.24880973,239.11,239.05,7.24880973]
[1738219093412,7.24880973,239.11,239.03,7.24880973]
[1738219094603,4.1833,239.06,239.03,7.24880973]
[1738219094808,7.24880973,239.11,239.03,7.24880973]
[1738219095008,7.27675721,239.07,238.99,7.24880973]
[1738219095207,7.24880973,239.07,238.99,7.24880973]
[1738219095411,0.03081668,239.05,238.99,7.24880973]
[1738219095710,4.1839,239.03,238.99,7.24880973]
[1738219096108,7.27962641,239.05,238.97,7.24880973]
[1738219096314,7.24880973,239.01,238.95,7.24880973]
[1738219096514,7.24880973,238.97,238.89,7.24880973]
[1738219096713,7.24880973,238.97,238.84,4.0924]
[1738219096714,4.1858,238.92,238.87,7.24880973]
[1738219097014,7.27978376,238.95,238.87,7.24880973]
[1738219097209,7.24880973,238.93,238.87,7.24880973]
[1738219097414,7.24880973,238.93,238.85,7.24880973]
[1738219098310,4.1865,238.87,238.83,169.11300199]
[1738219098506,7.24880973,238.93,238.84,7.24880973]
[1738219098706,7.24880973,238.93,238.86,7.24880973]
[1738219098913,0.02748026,238.87,238.86,7.24880973]
[1738219099115,7.24880973,238.93,238.86,7.24880973]
[1738219099414,4.21799073,238.89,238.84,7.24880973]
[1738219101211,4.1864,238.88,238.84,7.24880973]
[1738219101412,4.1864,238.88,238.82,7.24880973]
[1738219102210,7.28060046,238.89,238.82,7.24880973]
[1738219102717,7.24880973,238.87,238.8,7.24880973]
[1738219102911,4.1872,238.83,238.78,7.24880973]
[1738219103216,0.030524,238.81,238.78,7.24880973]
[1738219105112,0.030524,238.81,238.7,57.64878097]
[1738219105113,0.030524,238.81,238.8,7.24880973]
[1738219106308,7.24880973,238.93,238.8,7.24880973]
[1738219106514,4.1858,238.91,238.86,7.24880973]
[1738219106920,4.1862,238.89,238.86,7.24880973]
[1738219107216,7.24880973,238.93,238.86,7.24880973]
[1738219107410,7.24880973,238.95,238.88,7.24880973]
[1738219107614,0.02844928,238.92,238.87,0.03123851]
[1738219107815,7.24880973,238.95,238.86,7.24880973]
[1738219108017,4.1863,238.88,238.87,0.02802797]
[1738219108216,4.1863,238.88,238.84,7.24880973]
[1738219108516,4.1863,238.88,238.85,0.02695897]
[1738219108913,4.1865,238.87,238.85,0.02695897]
[1738219110320,4.1867,238.86,238.85,0.02695897]
[1738219117319,7.24880973,238.87,238.78,7.24880973]
[1738219117626,4.1878,238.8,238.76,7.24880973]
[1738219118527,4.21876958,238.8,238.76,7.24880973]
[1738219118928,0.03096958,238.8,238.78,7.24880973]
[1738219119427,244.0,238.79,238.5,169.11300199]
[1738219119631,236.05962618,238.79,238.7,7.24880973]
[1738219119829,0.03146584,238.68,238.67,7.24880973]
[1738219120021,4.1883,238.77,238.67,7.24880973]
[1738219120227,4.1883,238.77,238.67,11.43880973]
[1738219120426,7.24880973,238.86,238.73,7.24880973]
[1738219120922,4.1876,238.81,238.73,7.24880973]
[1738219121125,4.1876,238.81,238.77,0.02895561]
[1738219123832,0.0299319,238.82,238.77,0.02895561]
[1738219124131,4.1878,238.8,238.77,0.02895561]
[1738219125530,0.0299319,238.82,238.77,0.02895561]
[1738219126631,4.1879,238.8,238.77,0.02895561]
[1738219128035,0.0299319,238.82,238.77,0.02895561]
[1738219128228,0.0299319,238.82,238.79,7.24880973]
[1738219128634,0.0299319,238.82,238.77,7.27776534]
[1738219129830,0.0299319,238.82,238.77,0.02895561]
[1738219130040,7.24880973,238.8,238.77,0.02895561]
[1738219130434,4.1881,238.78,238.77,0.02895561]
[1738219130634,0.0299319,238.82,238.77,7.27776534]
[1738219130932,0.0299319,238.82,238.81,4.1875]
[1738219131333,7.24880973,238.95,238.8,7.24880973]
[1738219131637,4.1862,238.89,238.87,7.24880973]
[1738219131838,4.1862,238.89,238.85,7.24880973]
[1738219132039,4.1859,238.91,238.85,7.24880973]
[1738219132338,7.24880973,238.91,238.83,7.24880973]
[1738219132643,7.0032,238.97,238.86,0.0265001]
[1738219132644,7.24880973,238.87,238.86,0.0265001]
[1738219132833,7.24880973,238.87,238.77,7.24880973]
[1738219132834,4.1874,238.82,238.77,7.24880973]
[1738219133034,7.24880973,238.85,238.84,0.03005652]
[1738219133335,7.24880973,238.85,238.75,7.24880973]
[1738219133537,4.1882,238.77,238.73,7.24880973]
[1738219133736,1.3423,238.88,238.73,7.24880973]
[1738219133737,7.24880973,238.8,238.73,7.24880973]
[1738219134440,7.24880973,238.8,238.74,0.02764748]
[1738219134441,0.03064665,238.79,238.74,0.02764748]
[1738219137035,4.1886,238.75,238.74,0.02764748]
[1738219138138,4.1886,238.75,238.74,4.748e-05]
[1738219140550,0.03064665,238.79,238.74,4.748e-05]
[1738219141744,4.1886,238.75,238.74,4.748e-05]
[1738219144141,11.36640864,238.76,238.59,12.73730864]
[1738219144341,11.36640864,238.76,238.62,11.36640864]
[1738219144542,1.4358,238.78,238.65,11.36640864]
[1738219144944,1.4358,238.78,238.67,4.1899]
[1738219145345,0.02680936,238.75,238.65,11.36640864]
[1738219145548,10.70660628,238.87,238.74,11.36640864]
[1738219145842,10.70660628,238.87,238.68,11.36640864]
[1738219145843,4.1874,238.82,238.77,11.36640864]
[1738219146150,11.36640864,238.9,238.74,11.36640864]
[1738219146346,11.36640864,238.9,238.75,4.1884]
[1738219146642,0.02871377,238.85,238.8,0.0310159]
[1738219147247,4.1876,238.81,238.8,0.0310159]
[1738219148250,0.02871377,238.85,238.8,0.0310159]
[1738219149852,4.1874,238.82,238.8,0.0310159]
[1738219152257,0.02871377,238.85,238.8,0.0310159]
[1738219152453,4.1875,238.81,238.8,0.0310159]
[1738219153554,4.1875,238.81,238.8,1.59e-05]
[1738219154155,15.55390864,238.81,238.8,1.59e-05]
[1738219156561,11.46244179,238.81,238.8,1.59e-05]
[1738219159262,4.1875,238.81,238.8,1.59e-05]
[1738219159462,7.30365556,238.85,238.8,1.59e-05]
[1738219159659,4.1873,238.83,238.8,1.59e-05]
[1738219159959,7.30365556,238.85,238.8,1.59e-05]
[1738219162062,4.1875,238.81,238.8,1.59e-05]
[1738219162265,7.30365556,238.85,238.8,1.59e-05]
[1738219162762,4.1874,238.82,238.8,1.59e-05]
[1738219163759,0.02871377,238.85,238.8,1.59e-05]
[1738219164662,4.1874,238.83,238.8,1.59e-05]
[1738219167661,0.02871377,238.85,238.8,1.59e-05]
[1738219168959,0.02871377,238.85,238.81,4.1874]
[1738219169163,0.02871377,238.85,238.8,1.59e-05]
[1738219171066,0.02871377,238.85,238.82,4.1873]
[1738219171661,0.02871377,238.85,238.84,11.36078332]
[1738219171959,0.02871377,238.85,238.84,15.54778332]
[1738219172756,0.02871377,238.85,238.81,12.70908332]
[1738219173059,0.02871377,238.85,238.82,4.1873]
[1738219173565,0.02871377,238.85,238.81,5.5358]
[1738219173761,0.02871377,238.85,238.8,1.59e-05]
[1738219176166,4.1873,238.83,238.8,1.59e-05]
[1738219178858,0.02871377,238.85,238.81,11.36078332]
[1738219179264,0.02871377,238.85,238.84,11.36078332]
[1738219179768,0.02871377,238.85,238.84,15.54778332]
[1738219182672,0.02871377,238.85,238.84,11.45341862]
[1738219184369,0.02871377,238.85,238.84,7.26641862]
[1738219185075,0.02871377,238.85,238.84,11.45341862]
[1738219211094,4.1851,238.95,238.84,7.26641862]
[1738219211295,4.1851,238.95,238.9,7.26641862]
[1738219212094,4.21230192,238.95,238.9,7.293242]
[1738219213107,4.21230192,238.95,238.9,11.479142]
[1738219213400,0.02720192,238.95,238.9,7.293242]
[1738219213699,10.77782552,239.07,238.9,7.293242]
[1738219213700,10.77782552,239.07,238.94,7.26641862]
[1738219213898,10.77782552,239.07,238.84,2.74]
[1738219213899,1.4089,239.06,239.03,7.26641862]
[1738219214197,8.67531862,239.06,238.99,7.26641862]
[1738219214397,8.67531862,239.06,238.97,7.26641862]
[1738219214799,0.03112786,239.04,238.99,0.02702293]
[1738219215302,7.29754648,239.04,238.99,0.02702293]
[1738219215702,4.1839,239.03,238.99,0.02702293]
[1738219217101,4.1839,239.03,238.99,7.29344155]
[1738219218200,4.1839,239.02,238.99,7.29344155]
[1738219219703,0.03112786,239.04,238.99,7.29344155]
[1738219221104,0.03112786,239.04,239.01,7.26641862]
[1738219221603,0.03112786,239.04,239.01,11.45041862]
[1738219222205,0.03112786,239.04,239.03,7.26641862]
[1738219225906,0.03112786,239.04,239.03,11.45011862]
[1738219226309,0.03112786,239.04,239.03,7.26641862]
[1738219226804,4.2108,239.14,239.03,7.26641862]
[1738219227009,4.1821,239.12,239.1,7.26641862]
[1738219227209,4.2108,239.14,239.08,7.26641862]
[1738219227508,7.26641862,239.12,239.06,7.26641862]
[1738219227908,0.03006876,239.11,239.07,0.0281206]
[1738219228302,4.183,239.08,239.07,0.0281206]
[1738219229209,0.03006876,239.11,239.07,0.0281206]
[1738219229410,4.1828,239.08,239.07,0.0281206]
[1738219231310,11.44921862,239.08,239.07,0.0281206]
[1738219232806,4.1828,239.08,239.07,0.0281206]
[1738219234512,4.1844,238.99,238.98,7.26641862]
[1738219239611,4.1847,238.97,238.96,7.2955902]
[1738219240014,4.1847,238.97,238.96,0.02917158]
[1738219242618,7.26641862,238.98,238.88,7.26641862]
[1738219242921,7.26641862,238.95,238.88,7.26641862]
[1738219243420,4.1855,238.93,238.88,7.26641862]
[1738219243616,7.26641862,238.95,238.88,7.26641862]
[1738219243813,0.02869321,238.93,238.88,7.29584842]
[1738219244323,4.186,238.91,238.88,7.29584842]
[1738219245520,4.1861,238.9,238.88,7.29584842]
[1738219249629,4.1861,238.89,238.88,0.0294298]
[1738219250823,11.45251862,238.89,238.88,0.0294298]
[1738219251029,7.26641862,238.89,238.82,7.26641862]
[1738219251228,4.1872,238.83,238.82,7.26641862]
[1738219251823,4.1872,238.84,238.82,7.26641862]
[1738219252228,7.26641862,238.83,238.76,7.0]
[1738219252428,4.1882,238.77,238.76,7.0]
[1738219260431,11.45461862,238.77,238.76,7.0]
[1738219260631,4.1882,238.77,238.76,7.0]
[1738219262539,11.45461862,238.77,238.76,0.4121]
[1738219263743,11.45461862,238.77,238.76,1.4121]
[1738219264745,4.1893,238.71,238.67,7.26641862]
[1738219265235,0.02815829,238.71,238.69,7.26641862]
[1738219271541,4.21745829,238.71,238.69,7.26641862]
[1738219272648,0.02815829,238.71,238.69,7.26641862]
[1738219272951,0.02815829,238.71,238.69,11.45601862]
[1738219273139,0.02815829,238.71,238.69,7.26641862]
[1738219274148,10.01701862,238.83,238.69,7.26641862]
[1738219274349,10.01701862,238.83,238.76,7.26641862]
[1738219274554,4.1881,238.78,238.76,7.26641862]
[1738219274852,10.01701862,238.83,238.74,7.26641862]
[1738219275047,7.26641862,238.81,238.74,7.26641862]
[1738219275446,0.02754,238.8,238.75,0.03113161]
[1738219276553,7.26641862,238.77,238.75,0.03113161]
[1738219277241,4.1884,238.76,238.75,0.03113161]
[1738219292757,4.188,238.79,238.75,11.48615023]
[1738219292957,0.02754,238.8,238.77,7.26641862]
[1738219293460,4.1879,238.79,238.77,7.26641862]
[1738219294063,0.02754,238.8,238.77,11.45461862]
[1738219294363,0.02754,238.8,238.79,7.26641862]
[1738219294971,0.02754,238.8,238.75,7.29755023]
[1738219295260,4.1881,238.78,238.75,0.03113161]
[1738219295466,7.26641862,238.76,238.66,11.45641862]
[1738219295661,7.26641862,238.73,238.66,7.26641862]
[1738219296167,7.26641862,238.75,238.66,7.26641862]
[1738219296760,4.1894,238.71,238.66,7.26641862]
[1738219297160,0.03179959,238.73,238.66,7.26641862]
[1738219298059,4.1895,238.7,238.66,7.26641862]